bitfinex-derivatives/quotes_SOLF0:USTF0_20241008
["timestamp","ask_amount","ask_price","bid_price","bid_amount"]
[1728399081861,18.35,143.86,143.79,9.0697]
[1728399082058,18.35,143.84,143.79,1.3921]
[1728399082267,18.35,143.84,143.75,24.83502]
[1728399082561,21.8279,143.82,143.79,3.4784]
[1728399082947,21.8279,143.82,143.75,6.48502]
[1728399083153,21.8279,143.82,143.8,3.4782]
[1728399083554,18.35,143.84,143.75,24.83502]
[1728399084053,18.35,143.84,143.75,6.48502]
[1728399084256,18.35,143.84,143.79,3.4785]
[1728399085164,3.4776,143.83,143.8,3.4782]
[1728399085648,21.8274,143.84,143.77,3.4788]
[1728399085854,18.35,143.84,143.75,24.83502]
[1728399086454,21.8274,143.84,143.77,3.4788]
[1728399086660,19.6605,143.86,143.77,21.82413329]
[1728399086858,26.0205,143.86,143.78,1.3168]
[1728399087256,18.35,143.84,143.78,1.3168]
[1728399087655,18.35,143.84,143.82,3.4776]
[1728399088050,26.0205,143.86,143.78,1.3168]
[1728399088249,24.71,143.86,143.78,1.3168]
[1728399088453,24.71,143.86,143.79,24.71]
[1728399088454,6.36,143.86,143.79,24.71]
[1728399088672,6.36,143.86,143.79,26.1457]
[1728399088856,0.12502,143.87,143.81,18.35]
[1728399090566,0.12502,143.87,143.85,3.4769]
[1728399090867,0.12502,143.87,143.83,18.35]
[1728399091165,0.12502,143.87,143.86,3.4768]
[1728399091657,0.12502,143.87,143.84,1.3306]
[1728399091859,18.47502,143.87,143.85,3.4769]
[1728399092253,3.4769,143.86,143.81,6.36]
[1728399092455,3.4769,143.86,143.82,3.4776]
[1728399092649,3.4769,143.86,143.81,6.36]
[1728399092860,18.47502,143.87,143.83,3.4773]
[1728399092861,21.95162,143.87,143.83,3.4773]
[1728399093257,21.95162,143.87,143.81,6.36]
[1728399093461,21.95162,143.87,143.84,3.4772]
[1728399094163,3.4768,143.86,143.83,3.4774]
[1728399094359,18.47502,143.87,143.83,3.4774]
[1728399094764,21.95172,143.87,143.83,3.4774]
[1728399094961,18.47502,143.87,143.83,3.4774]
[1728399095761,18.47502,143.87,143.79,9.1561]
[1728399096366,21.95172,143.87,143.79,9.1561]
[1728399096566,18.47502,143.87,143.79,9.1561]
[1728399096959,18.47502,143.87,143.84,3.4771]
[1728399097164,18.47502,143.87,143.79,9.1561]
[1728399097467,21.95172,143.87,143.83,3.4773]
[1728399097665,21.95172,143.87,143.79,9.1561]
[1728399097866,18.47502,143.87,143.79,9.1561]
[1728399098068,18.47502,143.87,143.78,1.4142]
[1728399098069,18.35,143.85,143.78,1.4142]
[1728399098463,3.4774,143.84,143.8,3.478]
[1728399098686,18.35,143.85,143.78,4.8375416]
[1728399098883,18.35,143.85,143.78,1.4142]
[1728399099261,21.8271,143.85,143.78,1.4142]
[1728399099456,21.8271,143.85,143.79,3.53321119]
[1728399099970,21.8271,143.85,143.81,3.4778]
[1728399100769,21.8271,143.85,143.79,3.53321119]
[1728399100972,21.8271,143.85,143.82,3.4777]
[1728399101872,3.4773,143.84,143.81,3.4778]
[1728399103571,3.4776,143.83,143.8,3.4782]
[1728399103873,21.8276,143.83,143.8,3.4782]
[1728399104060,18.35,143.83,143.77,6.36]
[1728399104266,18.35,143.83,143.78,5.92075565]
[1728399104467,18.35,143.83,143.79,5.92075565]
[1728399104667,3.4777,143.82,143.79,3.4783]
[1728399104878,18.35,143.83,143.77,6.36]
[1728399105173,18.35,143.83,143.78,5.92088591]
[1728399105372,18.35,143.85,143.79,5.92088591]
[1728399105570,18.35,143.85,143.77,9.81859132]
[1728399105770,18.35,143.85,143.78,5.92418327]
[1728399105969,21.8272,143.85,143.79,5.92418327]
[1728399106273,21.8272,143.85,143.8,5.92834671]
[1728399106469,21.8272,143.85,143.77,9.78833821]
[1728399106670,21.8272,143.85,143.82,3.4777]
[1728399107674,18.47502,143.87,143.78,18.35]
[1728399107894,18.47502,143.87,143.79,5.93333521]
[1728399108181,18.47502,143.87,143.8,5.93333521]
[1728399108377,3.4768,143.86,143.83,3.4773]
[1728399108612,3.4768,143.86,143.78,18.35]
[1728399108795,21.95172,143.87,143.83,3.4773]
[1728399109075,21.95172,143.87,143.84,5.93800652]
[1728399109273,21.95172,143.87,143.83,3.4773]
[1728399109274,18.47502,143.87,143.83,3.4773]
[1728399109591,18.47502,143.87,143.84,5.94233373]
[1728399109776,18.47502,143.87,143.79,1.4063]
[1728399109975,21.95172,143.87,143.84,3.4771]
[1728399110279,21.95172,143.87,143.85,5.94374305]
[1728399110475,21.95172,143.87,143.84,3.4771]
[1728399110682,21.95172,143.87,143.85,5.94374305]
[1728399110977,18.47502,143.87,143.79,1.4063]
[1728399111183,18.47502,143.87,143.86,3.4768]
[1728399111872,0.12502,143.87,143.86,3.4768]
[1728399112186,0.12502,143.87,143.86,9.42114438]
[1728399114079,22.5086,143.92,143.86,9.42114438]
[1728399114080,27.3302,143.92,143.86,5.94434438]
[1728399114270,27.3302,143.92,143.87,5.94434438]
[1728399114476,27.3302,143.92,143.88,5.94434438]
[1728399114676,27.3302,143.92,143.89,5.94434438]
[1728399114877,27.3302,143.92,143.85,21.87875307]
[1728399115077,6.2,143.92,143.91,3.4756]
[1728399115489,19.6947,143.94,143.86,21.8561596]
[1728399115784,19.6947,143.94,143.87,5.94400679]
[1728399115984,23.1697,143.94,143.88,5.94400679]
[1728399116184,23.1697,143.94,143.89,5.94400679]
[1728399116379,23.1697,143.94,143.9,9.41980679]
[1728399116586,23.1697,143.94,143.87,3.5534321]
[1728399116885,23.1697,143.94,143.88,5.94379052]
[1728399117088,19.6947,143.94,143.89,5.94379052]
[1728399117383,18.35,143.92,143.9,5.94379052]
[1728399117572,18.35,143.92,143.85,6.2]
[1728399117773,19.6947,143.94,143.86,5.94407436]
[1728399117984,19.6947,143.94,143.87,5.94407436]
[1728399118188,19.6947,143.94,143.88,5.94407436]
[1728399118384,3.60012,143.93,143.89,9.41997436]
[1728399118587,3.60012,143.93,143.85,27.9796695]
[1728399118936,3.4755,143.92,143.85,27.9796695]
[1728399119091,3.4755,143.92,143.86,5.94482027]
[1728399119284,3.4755,143.92,143.87,5.94482027]
[1728399119492,3.60022,143.93,143.88,5.94482027]
[1728399119699,0.12502,143.93,143.89,5.94482027]
[1728399119883,0.12502,143.93,143.9,5.94482027]
[1728399120089,3.4753,143.92,143.89,3.4759]
[1728399120295,3.4753,143.92,143.9,5.94757616]
[1728399120504,3.4753,143.92,143.89,3.4759]
[1728399120798,0.12502,143.93,143.9,5.94724187]
[1728399120999,0.12502,143.93,143.85,27.9796695]
[1728399121199,0.12502,143.93,143.86,5.94713053]
[1728399121388,0.12502,143.93,143.88,3.4761]
[1728399121593,0.12502,143.93,143.89,5.94713053]
[1728399121801,0.12502,143.93,143.9,5.94713053]
[1728399121994,0.12502,143.93,143.91,5.94713053]
[1728399122215,0.12502,143.93,143.86,1.4421]
[1728399122399,18.35,143.92,143.87,5.94901356]
[1728399122593,19.74,143.92,143.88,5.94901356]
[1728399122801,18.35,143.9,143.89,5.94901356]
[1728399122999,18.35,143.9,143.89,3.476]
[1728399123199,18.35,143.9,143.89,9.4269592]
[1728399123799,9.6756,143.91,143.89,9.4269592]
[1728399123995,9.6756,143.91,143.89,3.476]
[1728399124295,6.2,143.91,143.9,3.4758]
[1728399124500,0.12502,143.93,143.9,5.95214219]
[1728399124703,0.12502,143.93,143.92,3.4753]
[1728399124898,0.12502,143.93,143.92,9.42744219]
[1728399125400,0.12502,143.93,143.92,3.4753]
[1728399125593,0.12502,143.93,143.92,9.4266925]
[1728399127199,0.12502,143.93,143.92,3.4753]
[1728399129908,7.06962,144.05,143.97,3.4741]
[1728399129909,18.35,144.01,143.97,3.4741]
[1728399130098,28.0232,144.01,143.92,18.35]
[1728399130409,6.2,144.01,143.94,18.35]
[1728399130703,6.2,144.01,143.95,5.94444329]
[1728399130904,9.0688,144.04,143.98,3.4739]
[1728399131111,9.0688,144.04,143.98,9.41679552]
[1728399131323,12.5414,144.04,143.98,9.41679552]
[1728399131526,2.8688,144.04,143.98,9.41679552]
[1728399131947,2.8688,144.04,143.98,3.4739]
[1728399132220,6.3415,144.04,143.98,9.41189806]
[1728399132529,2.8688,144.04,143.98,9.41189806]
[1728399133521,3.473,144.02,143.98,9.41189806]
[1728399133720,2.8688,144.04,143.98,9.41189806]
[1728399134119,3.473,144.02,143.98,9.41189806]
[1728399134528,2.8688,144.04,143.98,9.41189806]
[1728399134726,3.4728,144.03,143.98,9.41189806]
[1728399134926,18.35,144.03,143.98,5.93799806]
[1728399135221,18.35,144.03,143.96,1.4323]
[1728399135222,3.4741,143.97,143.92,7.4623]
[1728399135422,3.4741,143.97,143.93,5.92251072]
[1728399135629,6.14,144.01,143.94,5.92251072]
[1728399135630,18.35,143.98,143.94,5.92251072]
[1728399135921,18.35,143.98,143.9,6.14]
[1728399136127,6.14,144.01,143.92,3.4752]
[1728399136332,21.94872,143.99,143.93,5.92277941]
[1728399136523,21.94872,143.99,143.92,18.35]
[1728399136524,0.12502,143.99,143.92,18.35]
[1728399136830,0.12502,143.99,143.97,3.474]
[1728399138022,0.12502,143.99,143.95,3.4745]
[1728399138333,18.47502,143.99,143.92,6.14]
[1728399138536,18.47502,143.99,143.93,5.91952774]
[1728399138716,18.47502,143.99,143.94,5.91952774]
[1728399138926,18.35,143.97,143.9,6.14]
[1728399139127,28.02051146,143.97,143.91,5.91965917]
[1728399139325,18.35,143.95,143.88,6.14]
[1728399139526,18.35,143.95,143.89,5.92088688]
[1728399139725,3.4754,143.92,143.89,3.4759]
[1728399139926,18.35,143.94,143.87,0.12502]
[1728399140123,18.35,143.94,143.88,5.92173041]
[1728399140324,18.35,143.94,143.87,0.12502]
[1728399140532,21.8249,143.94,143.9,3.4756]
[1728399140840,3.4749,143.94,143.9,3.4756]
[1728399141024,19.7168,143.96,143.91,3.4755]
[1728399141232,3.4747,143.95,143.87,18.47502]
[1728399141531,1.3668,143.96,143.91,3.4754]
[1728399141924,3.4749,143.94,143.91,3.4754]
[1728399142327,1.3668,143.96,143.89,3.4759]
[1728399142531,19.7168,143.96,143.9,5.92217676]
[1728399142732,19.7168,143.96,143.87,18.47502]
[1728399142932,19.7168,143.96,143.9,3.4757]
[1728399143522,19.7168,143.96,143.91,3.4755]
[1728399143731,3.475,143.94,143.91,3.4755]
[1728399144131,3.4753,143.93,143.9,3.4757]
[1728399144437,18.35,143.94,143.87,0.12502]
[1728399144637,3.4755,143.92,143.89,3.4758]
[1728399145027,18.35,143.92,143.87,0.12502]
[1728399145230,3.4763,143.88,143.87,0.12502]
[1728399145435,19.7724,143.92,143.87,0.12502]
[1728399146133,1.4224,143.92,143.87,0.12502]
[1728399146434,3.4758,143.91,143.87,0.12502]
[1728399146832,3.4758,143.91,143.88,3.4762]
[1728399149836,4.8978,143.92,143.89,3.4759]
[1728399150142,3.4754,143.92,143.89,3.4759]
[1728399151038,3.4748,143.95,143.93,3.475]
[1728399151238,8.901,143.96,143.88,18.35]
[1728399151429,27.251,143.96,143.89,5.92678686]
[1728399151634,3.475,143.94,143.91,3.4754]
[1728399152345,27.251,143.96,143.87,24.61502]
[1728399152536,18.35,143.92,143.88,5.92772413]
[1728399152737,3.4756,143.91,143.88,3.4762]
[1728399153340,3.4758,143.9,143.87,3.60142]
[1728399154239,24.49,143.92,143.87,0.12502]
[1728399154445,3.4757,143.91,143.88,3.4762]
[1728399155342,6.14,143.92,143.87,0.12502]
[1728399155745,24.49,143.95,143.88,5.93117165]
[1728399155940,3.475,143.94,143.9,3.4756]
[1728399156339,24.49,143.95,143.9,3.4756]
[1728399156543,3.4752,143.93,143.9,3.4756]
[1728399156846,24.49,143.95,143.91,3.4755]
[1728399157044,3.475,143.94,143.91,3.4755]
[1728399157246,6.14,143.95,143.87,18.47502]
[1728399157552,6.14,143.95,143.88,24.28202912]
[1728399157748,6.14,143.95,143.89,5.93202912]
[1728399157749,9.6148,143.95,143.89,5.93202912]
[1728399157943,6.14,143.95,143.9,5.93202912]
[1728399158139,6.14,143.95,143.91,5.93202912]
[1728399158334,9.6147,143.95,143.88,18.35]
[1728399158638,7.4644,143.98,143.89,5.93160974]
[1728399158840,3.55363334,143.97,143.9,5.93160974]
[1728399159050,9.69363334,143.97,143.92,3.4752]
[1728399159240,6.14,143.97,143.91,5.93150719]
[1728399159442,9.70019799,143.97,143.92,5.9315024]
[1728399159647,9.70019799,143.97,143.88,18.35]
[1728399159848,6.14,143.97,143.89,5.93148955]
[1728399160048,3.4745,143.96,143.92,3.4753]
[1728399160246,24.49,143.97,143.92,3.4753]
[1728399160444,18.35,143.95,143.87,24.61502]
[1728399160640,3.4751,143.93,143.9,3.4757]
[1728399160840,9.53895525,143.97,143.91,5.93136686]
[1728399161045,3.4752,143.93,143.9,3.4758]
[1728399161844,3.4752,143.93,143.89,3.4759]
[1728399162043,18.35,143.95,143.9,5.93194997]
[1728399162244,18.35,143.95,143.89,3.4759]
[1728399162245,18.35,143.95,143.87,24.61502]
[1728399162449,3.4753,143.93,143.9,3.4757]
[1728399163440,18.35,143.95,143.89,3.4759]
[1728399163441,3.4754,143.92,143.89,3.4759]
[1728399163646,18.35,143.95,143.9,5.93297907]
[1728399163852,27.88895525,143.97,143.87,24.61502]
[1728399164054,3.4747,143.95,143.92,3.4751]
[1728399165246,9.6145,143.96,143.88,18.35]
[1728399165449,9.6145,143.96,143.89,5.93353205]
[1728399165650,6.14,143.96,143.9,5.93353205]
[1728399165848,3.4746,143.95,143.91,5.93353205]
[1728399166061,6.14,143.96,143.89,1.3728]
[1728399166248,9.6145,143.96,143.93,3.4749]
[1728399166748,6.14,143.96,143.93,3.4749]
[1728399167553,3.4746,143.95,143.93,3.4749]
[1728399168051,9.6145,143.96,143.89,1.3728]
[1728399168251,9.6145,143.96,143.9,5.93387665]
[1728399168450,9.6145,143.96,143.91,5.93387665]
[1728399168651,6.14,143.96,143.93,3.475]
[1728399168851,6.14,143.96,143.89,1.3728]
[1728399169156,6.14,143.96,143.92,3.4753]
[1728399171352,3.4749,143.94,143.92,3.4753]
[1728399171655,6.14,143.96,143.89,19.7228]
[1728399171851,9.6146,143.96,143.9,5.93766121]
[1728399172055,6.14,143.96,143.91,5.93766121]
[1728399172394,6.14,143.96,143.89,19.7228]
[1728399172559,3.4748,143.94,143.92,3.4752]
[1728399172855,24.49,143.98,143.89,19.7228]
[1728399173156,3.4745,143.96,143.89,19.7228]
[1728399173353,24.49,143.98,143.89,19.7228]
[1728399173655,3.4746,143.95,143.89,19.7228]
[1728399174042,3.4746,143.95,143.92,3.4751]
[1728399174249,3.4746,143.95,143.93,5.93997909]
[1728399174443,3.4746,143.95,143.92,3.4751]
[1728399174657,3.4746,143.95,143.93,5.94182513]
[1728399174858,3.4745,143.96,143.94,3.4748]
[1728399175354,3.4747,143.95,143.92,3.4752]
[1728399175555,21.84371958,143.97,143.93,5.94359661]
[1728399175753,21.84371958,143.97,143.94,5.94359661]
[1728399175960,3.4746,143.96,143.93,3.4749]
[1728399176149,21.84371958,143.97,143.94,5.94357283]
[1728399176349,21.84371958,143.97,143.93,3.4749]
[1728399176557,3.4744,143.96,143.94,5.94556541]
[1728399176763,21.84371958,143.97,143.89,1.3728]
[1728399176960,21.84371958,143.97,143.9,5.94553717]
[1728399177162,21.84371958,143.97,143.91,5.94553717]
[1728399177389,21.84371958,143.97,143.89,1.3728]
[1728399177562,21.84371958,143.97,143.9,5.94672657]
[1728399177861,3.4747,143.95,143.93,3.4749]
[1728399178162,3.4747,143.95,143.94,5.94672657]
[1728399179465,3.4744,143.96,143.94,9.42152657]
[1728399179662,3.4744,143.96,143.94,3.4748]
[1728399180159,1.54532,143.99,143.95,5.9503458]
[1728399180360,1.54532,143.99,143.98,3.4739]
[1728399180558,0.12502,143.99,143.98,9.42371592]
[1728399180758,0.12502,143.99,143.98,9.42277915]
[1728399183371,0.12502,144.05,143.98,24.29887915]
[1728399183663,0.12502,144.05,144.0,18.35]
[1728399183865,0.12502,144.05,144.01,5.94887915]
[1728399184070,0.12502,144.05,143.99,6.14]
[1728399184270,0.12502,144.05,144.0,24.29332552]
[1728399184473,0.12502,144.05,144.02,18.35]
[1728399184661,0.12502,144.05,144.03,5.94332552]
[1728399184864,0.12502,144.05,144.04,9.41572552]
[1728399187414,0.12502,144.05,144.04,3.4724]
[1728399188572,0.12502,144.05,144.04,9.40232309]
[1728399190367,0.12502,144.05,144.04,3.4724]
[1728399192967,0.12502,144.05,144.03,3.4725]
[1728399193972,0.12502,144.05,144.04,3.4724]
[1728399195076,0.12502,144.05,144.04,21.8224]
[1728399195271,0.12502,144.11,144.04,30.38781002]
[1728399195573,0.12502,144.11,144.06,18.35]
[1728399195969,0.12502,144.11,144.09,3.471]
[1728399196365,0.12502,144.11,144.06,18.35]
[1728399196576,0.12502,144.11,144.1,3.471]
[1728399197169,0.12502,144.11,144.09,3.4711]
[1728399197579,0.12502,144.11,144.06,18.35]
[1728399197772,0.12502,144.11,144.1,3.471]
[1728399198568,0.12502,144.17,144.09,18.35]
[1728399198874,0.12502,144.17,144.13,18.35]
[1728399199881,0.12502,144.17,144.16,3.4695]
[1728399200901,0.12502,144.17,144.13,18.35]
[1728399201175,0.12502,144.17,144.12,6.12]
[1728399202184,3.4698,144.15,144.12,3.4704]
[1728399202478,0.12502,144.17,144.1,6.12]
[1728399202778,0.12502,144.17,144.08,19.669]
[1728399202779,3.4705,144.13,144.09,3.4711]
[1728399202977,6.12,144.15,144.08,6.12]
[1728399203177,7.4899,144.15,144.08,6.12]
[1728399203377,21.74722491,144.14,144.05,21.96048262]
[1728399203682,23.19582491,144.14,144.06,12.00940349]
[1728399203980,3.4707,144.11,144.08,3.4714]
[1728399204203,1.4486,144.14,144.06,24.47]
[1728399205082,3.4704,144.13,144.08,3.4714]
[1728399205282,3.4704,144.13,144.06,24.47]
[1728399205783,3.4707,144.12,144.06,24.47]
[1728399206189,1.4486,144.14,144.09,3.4711]
[1728399206480,3.4704,144.13,144.09,3.4711]
[1728399207077,3.4705,144.12,144.06,24.47]
[1728399207287,4.99730918,144.14,144.06,6.12]
[1728399207476,1.4486,144.14,144.06,24.47]
[1728399207782,1.4486,144.14,144.1,3.4708]
[1728399208377,3.4704,144.13,144.1,3.4708]
[1728399209596,1.4486,144.14,144.06,24.47]
[1728399210293,1.4486,144.14,144.06,6.12]
[1728399210294,4.90359496,144.14,144.06,6.12]
[1728399210491,3.4709,144.11,144.09,3.4712]
[1728399210683,4.90359496,144.14,144.06,6.12]
[1728399211015,3.4704,144.13,144.1,3.471]
[1728399211178,1.4486,144.14,144.07,18.35]
[1728399211585,7.4899,144.15,144.07,18.35]
[1728399211985,25.8399,144.15,144.07,18.35]
[1728399212184,3.4704,144.13,144.1,3.4709]
[1728399212391,7.4899,144.15,144.07,18.35]
[1728399212795,7.4899,144.15,144.11,3.4705]
[1728399212984,7.4899,144.15,144.07,18.35]
[1728399213189,7.4899,144.15,144.09,3.4711]
[1728399213190,3.4704,144.13,144.09,3.4711]
[1728399213486,3.4704,144.13,144.07,18.35]
[1728399213878,3.4707,144.12,144.09,3.4711]
[1728399214393,3.42803337,144.14,144.08,3.4713]
[1728399214580,18.35,144.13,144.08,3.4713]
[1728399214987,18.35,144.13,144.06,6.12]
[1728399215689,18.35,144.13,144.08,3.4715]
[1728399215893,18.35,144.13,144.06,6.12]
[1728399216196,18.35,144.13,144.08,3.4713]
[1728399217296,3.4708,144.11,144.08,3.4713]
[1728399218000,18.35,144.13,144.05,24.59502]
[1728399218191,3.4706,144.12,144.09,3.4711]
[1728399218392,1.55072,144.17,144.09,18.35]
[1728399218393,0.12502,144.17,144.09,18.35]
[1728399218698,3.4699,144.15,144.12,3.4704]
[1728399218886,0.12502,144.17,144.09,24.47]
[1728399219292,3.4697,144.16,144.09,24.47]
[1728399219693,6.24502,144.17,144.09,24.47]
[1728399220392,6.24502,144.17,144.14,3.4699]
[1728399220393,9.71442,144.17,144.14,3.4699]
[1728399220895,0.12502,144.17,144.11,18.35]
[1728399222500,0.12502,144.17,144.16,3.4695]
[1728399223691,7.06918,144.36,144.16,3.4695]
[1728399223692,3.59302,144.23,144.19,3.4687]
[1728399223898,0.12502,144.23,144.19,3.4687]
[1728399224198,3.4685,144.21,144.18,3.4689]
[1728399224391,0.12502,144.23,144.14,18.35]
[1728399224802,21.89663171,144.22,144.16,3.4693]
[1728399224988,1.4169,144.21,144.16,3.4693]
[1728399225392,1.4169,144.21,144.15,6.12]
[1728399225602,18.35,144.2,144.14,3.4699]
[1728399225797,3.4694,144.17,144.14,3.4699]
[1728399226002,18.35,144.18,144.14,3.4699]
[1728399226202,21.0398,144.2,144.16,3.4694]
[1728399226393,3.4689,144.19,144.16,3.4694]
[1728399226705,21.0398,144.2,144.14,3.4699]
[1728399226889,3.4694,144.17,144.14,3.4699]
[1728399227316,21.0398,144.2,144.13,3.4701]
[1728399227493,3.4694,144.17,144.12,6.12]
[1728399227688,3.4694,144.17,144.14,3.4698]
[1728399228364,3.4694,144.17,144.12,6.12]
[1728399228999,3.4694,144.17,144.13,3.4701]
[1728399229197,3.4694,144.17,144.12,6.12]
[1728399230400,18.35,144.18,144.13,3.4701]
[1728399230693,18.35,144.16,144.11,0.12502]
[1728399231003,18.35,144.14,144.11,0.12502]
[1728399231195,3.4705,144.12,144.11,0.12502]
[1728399231400,18.35,144.12,144.07,3.4716]
[1728399231703,3.4709,144.11,144.05,0.12502]
[1728399232001,21.0824,144.14,144.1,3.4709]
[1728399232203,21.0824,144.14,144.06,18.35]
[1728399232403,3.4707,144.12,144.06,18.35]
[1728399232905,3.4707,144.12,144.07,3.4715]
[1728399233200,3.4704,144.13,144.06,18.35]
[1728399233703,24.5165261,144.14,144.06,18.35]
[1728399234231,27.9866261,144.14,144.06,18.35]
[1728399234598,2.7324,144.14,144.06,18.35]
[1728399234800,4.8362,144.14,144.06,18.35]
[1728399235004,1.12502,144.17,144.1,18.35]
[1728399235304,3.59442,144.17,144.1,18.35]
[1728399235702,3.59442,144.17,144.13,3.4701]
[1728399236499,3.59442,144.17,144.1,18.35]
[1728399236805,3.59442,144.17,144.14,3.47]
[1728399237395,0.12502,144.17,144.15,3.4695]
[1728399237607,0.12502,144.17,144.11,29.33]
[1728399237998,0.12502,144.17,144.16,3.4695]
[1728399240404,0.12502,144.17,144.1,1.3844]
[1728399240405,3.4697,144.16,144.13,3.4701]
[1728399240604,0.12502,144.17,144.1,1.3844]
[1728399241009,0.12502,144.17,144.12,3.4705]
[1728399241210,0.12502,144.17,144.1,1.3844]
[1728399241606,0.12502,144.17,144.1,7.5044]
[1728399242209,3.59442,144.17,144.14,3.4699]
[1728399242407,3.59442,144.17,144.07,6.12]
[1728399242408,6.24502,144.17,144.07,6.12]
[1728399242910,3.4698,144.15,144.11,3.4706]
[1728399243504,6.24502,144.17,144.07,6.12]
[1728399244110,29.33,144.16,144.05,0.12502]
[1728399244301,29.33,144.16,144.06,5.9100565]
[1728399244504,1.3188,144.15,144.05,0.12502]
[1728399244700,1.3188,144.15,144.08,3.4713]
[1728399245035,1.3188,144.15,144.06,5.91013803]
[1728399245036,1.4459,144.14,144.05,0.12502]
[1728399245212,3.4712,144.09,144.06,3.4718]
[1728399245514,9.64427045,144.13,144.05,0.12502]
[1728399245703,3.4711,144.1,144.07,3.4716]
[1728399245904,3.4711,144.1,144.05,0.12502]
[1728399246103,9.64427045,144.13,144.05,0.12502]
[1728399246309,9.64427045,144.13,144.06,5.91863229]
[1728399246510,38.97427045,144.13,144.05,0.12502]
[1728399246713,38.97427045,144.13,144.06,5.91861046]
[1728399246912,29.33,144.11,144.05,0.12502]
[1728399247108,29.33,144.08,144.05,0.12502]
[1728399247308,3.4719,144.06,144.05,0.12502]
[1728399247516,7.44,144.07,144.05,0.12502]
[1728399247713,1.32,144.07,144.05,0.12502]
[1728399247913,7.44,144.07,144.05,3.59702]
[1728399248232,7.44,144.07,144.05,0.12502]
[1728399248233,6.12,144.07,144.05,0.12502]
[1728399248517,6.12,144.07,144.06,3.4719]
[1728399248703,6.12,144.07,144.05,0.12502]
[1728399249113,1.32,144.11,144.05,0.12502]
[1728399249114,3.4713,144.09,144.05,0.12502]
[1728399249314,60.0828,144.06,143.93,0.12502]
[1728399249620,29.33,143.99,143.94,5.93190764]
[1728399249812,9.530881,143.98,143.93,0.12502]
[1728399250014,9.530881,143.98,143.94,5.93609633]
[1728399250318,6.12,143.97,143.93,0.12502]
[1728399250616,6.12,143.96,143.94,5.93450099]
[1728399250814,9.5945,143.96,143.93,0.12502]
[1728399251010,9.5945,143.96,143.94,5.93447147]
[1728399251206,9.5945,143.96,143.93,0.12502]
[1728399251413,29.33,144.01,143.93,0.12502]
[1728399251613,3.474,143.98,143.94,5.93040395]
[1728399251822,3.474,143.98,143.93,0.12502]
[1728399252023,3.474,143.98,143.94,5.93036545]
[1728399252214,6.12,144.0,143.93,0.12502]
[1728399252415,29.33,143.99,143.94,5.92685495]
[1728399252714,29.33,143.99,143.93,0.12502]
[1728399252910,3.4743,143.97,143.93,0.12502]
[1728399253118,6.12,143.96,143.93,0.12502]
[1728399254519,9.5944,143.96,143.93,0.12502]
[1728399255618,3.4746,143.95,143.93,0.12502]
[1728399256424,3.4748,143.94,143.93,0.12502]
[1728399256619,6.12,143.96,143.93,0.12502]
[1728399256816,29.33,143.97,143.93,0.12502]
[1728399257023,9.5945,143.96,143.93,0.12502]
[1728399257324,1.4102,143.98,143.93,0.12502]
[1728399257515,6.12,143.97,143.93,0.12502]
[1728399257715,9.5943,143.97,143.93,0.12502]
[1728399257921,6.12,143.97,143.93,0.12502]
[1728399258525,3.4744,143.96,143.93,0.12502]
[1728399258721,1.4102,143.98,143.93,0.12502]
[1728399258919,1.4102,143.98,143.94,3.4748]